Cogmind - Beta 16.1 @@@ ROGUE MODE // 2026.02.21 @ 00:59:00 Player: OniAn Result: Self-destructed Performance ------------- Evolutions (1) 500 Regions Visited (4) 800 Robots Destroyed (22) 110 Value Destroyed (676) 676 Prototype IDs (2) 40 Alien Tech Used (0) 0 Bonus (42) 42 TOTAL SCORE: 2168 Bonus ------- Follower Combat Kills 42 Cogmind --------- Core Integrity 303/400 Matter 294/300 Energy 160/160 System Corruption 0% Temperature Cool (0) Movement Walking (120) Location -9/Mines Parts ------- > --- POWER (1) -------- Light Nuclear Core > --- PROPULSION (2) --- Aluminum Leg Carbon-fiber Leg > --- UTILITY (4) ------ Improved Heat Sink Small Storage Unit Signal Interpreter Improved Targeting Computer > --- WEAPON (2) ------- Light Cannon Mining Laser > --- INVENTORY (8) ---- Light Ion Engine Light Nuclear Core Improved Heat Sink EMP Blaster Rocket Launcher Hammer Katana Peak State ------------ > --- POWER ------------ Light Nuclear Core > --- PROPULSION ------- Aluminum Leg Carbon-fiber Leg > --- UTILITY ---------- Improved Heat Sink Small Storage Unit Signal Interpreter Improved Targeting Computer > --- WEAPON ----------- Light Cannon Katana > --- INVENTORY -------- Light Ion Engine Light Nuclear Core Aluminum Leg Wheel Improved Heat Sink EMP Blaster Mining Laser Hammer [Rating: 19] Favorites ----------- Power Light Nuclear Core Engine Light Ion Engine Power Core Light Nuclear Core Propulsion Aluminum Leg Leg Aluminum Leg Wheel Wheel Utility Small Storage Unit Device Improved Heat Sink Storage Small Storage Unit Processor Signal Interpreter Weapon Light Cannon Ballistic Gun Assault Rifle Ballistic Cannon Light Cannon Special Weapon Mining Laser Slashing Weapon Katana Build | -11 -10 -10 -9 -9 ------- Run | Yrd Mat Min Mat Min Slots Evolved 2 | . . . 2 . Power . | . . . . . Propulsion . | . . . . . Utility 2 | . . . 2 . Weapon . | . . . . . Parts Attached 19 | 6 1 5 2 5 Power 3 | 1 1 . . 1 Engine 1 | 1 . . . . Core 2 | . 1 . . 1 Reactor . | . . . . . Propulsion 6 | 2 . 3 . 1 Treads . | . . . . . Leg 4 | . . 3 . 1 Wheel 2 | 2 . . . . Hover . | . . . . . Flight . | . . . . . Utility 5 | 1 . 1 2 1 Device 2 | . . 1 . 1 Storage 1 | 1 . . . . Processor 2 | . . . 2 . Hackware . | . . . . . Protection . | . . . . . Artifact . | . . . . . Weapon 5 | 2 . 1 . 2 Energy Gun . | . . . . . Energy Cannon . | . . . . . Ballistic Gun 2 | 2 . . . . Ballistic Cannon 1 | . . 1 . . Launcher . | . . . . . Special Weapon 1 | . . . . 1 Impact Weapon . | . . . . . Slashing Weapon 1 | . . . . 1 Piercing Weapon . | . . . . . Special Melee Weapon . | . . . . . Unidentified Prototypes . | . . . . . Parts Lost 5 | . . 3 . 2 Power 1 | . . 1 . . Propulsion 3 | . . 1 . 2 Utility . | . . . . . Weapon 1 | . . 1 . . Highest Loss Streak 2 | . . 2 . 1 To Critical Strikes . | . . . . . Average Backups 6 | . 1 5 6 7 Power 1 | . . 1 2 2 Propulsion 1 | . . 1 2 1 Utility . | . . . . . Weapon 2 | . 1 2 2 3 Tool/Special . | . . . . . Unused Backups 4 | . . . . 4 Power 1 | . . . . 1 Propulsion . | . . . . . Utility . | . . . . . Weapon 3 | . . . . 3 Tool/Special . | . . . . . Average Slot Usage (%) 86 | . 85 87 72 88 Core 6 | . . 4 . 10 Leg 17 | . . 24 21 12 Wheel 2 | . 28 2 . . Device 10 | . . 12 11 11 Storage 12 | . 14 14 11 11 Processor 11 | . . . 11 22 Ballistic Gun 9 | . 28 18 6 . Ballistic Cannon 9 | . . 8 11 10 Special Weapon 1 | . . . . 3 Slashing Weapon 3 | . . . . 6 Peak Build Rating 19 | 6 8 11 11 19 Average Rating 12 | 3 6 8 9 17 On Entrance 6 | . 6 8 8 11 Avg Prop Armor Cover (%) . | . . . . . Naked Turns . | . . . . . Heaviest Build 16 | 11 13 14 11 16 Greatest Support 25 | 20 20 20 20 25 Greatest Overweight (x) 4 | . . 4 . 1 Average Overweight (x) . | . . . . . Largest Inventory Capacity 8 | 8 8 8 8 8 Average Capacity 7 | 6 8 8 8 8 Most Carried 8 | . 4 6 7 8 Average Carried 6 | . 1 5 6 7 Final Capacity 8 | 8 8 8 8 8 Final Carried 7 | . 4 6 7 7 Class Distribution -------------------- 60% | Mutant 39% | Scavenger-Mutant Dominant Class ---------------- Mutant | -10/Materials Mutant | -10/Mines Mutant | -9/Materials Scavenger-Mutant | -9/Mines Resources | -11 -10 -10 -9 -9 ----------- Run | Yrd Mat Min Mat Min Matter Collected 757 | 204 58 215 54 226 Remotely . | . . . . . Salvage Created 669 | . 101 204 138 226 Parts 45 | . 3 14 6 22 Haulers Intercepted . | . . . . . Recyclers Shooed 1 | . . 1 . . Parts Field Recycled . | . . . . . Retrieved Matter . | . . . . . Parts Self-Destructed . | . . . . . Prevented . | . . . . . Parts Restored . | . . . . . Kills | -11 -10 -10 -9 -9 ------- Run | Yrd Mat Min Mat Min Combat Hostiles Destroyed 20 | . 2 5 3 10 Guns 6 | . 2 4 . . Cannons 14 | . . 1 3 10 Classes Destroyed 6 | . 1 3 1 1 Worker 1 | . . 1 . . Tunneler 1 | . . 1 . . Swarmer 5 | . . 1 . 4 Grunt 11 | . 2 4 . 5 Duelist 1 | . . . . 1 Sentry 3 | . . . 3 . Best Kill Streak 5 | . 1 2 2 5 Combat Bots Only 5 | . 1 2 2 5 Max Kills in Single Turn 1 | . 1 1 1 1 Gunslinging . | . . . . . Exploded . | . . . . . Melee . | . . . . . Uniques/NPCs Destroyed . | . . . . . Combat | -11 -10 -10 -9 -9 -------- Run | Yrd Mat Min Mat Min Hostile Shots Fired 114 | . 18 45 10 41 Missed 27 | . 6 9 5 7 Hits 87 | . 12 36 5 34 Projectile 87 | . 12 36 5 34 Damage Taken 1041 | . 169 478 75 319 Core 298 | . 73 128 14 83 Absorbed by Shields . | . . . . . Core Remaining (%) 59 | 100 . 19 . . Volleys Fired 88 | . 14 28 10 36 Largest 2 | . 2 2 1 1 Hottest 100 | . 40 50 30 100 Shots Fired 127 | . 28 53 10 36 Gun 74 | . 28 46 . . Cannon 51 | . . 7 10 34 Launcher . | . . . . . Special 2 | . . . . 2 Kinetic 125 | . 28 53 10 34 Thermal 2 | . . . . 2 Explosive . | . . . . . Electromagnetic . | . . . . . Robot Hit Streak 9 | . 7 7 7 9 Robot Miss Streak 4 | . 2 4 1 3 Penetration Max . | . . . . . Secondary Targets 1 | . . 1 . . Max Gunslinging Chain 1 | . . 1 . . Shots Hit Robots 79 | . 18 32 8 21 Core Hits 37 | . 5 14 5 13 Critical Kills . | . . . . . Critical Parts Destroyed 2 | . 2 . . . Critical Strikes 2 | . 2 . . . Destroy 2 | . 2 . . . Melee Attacks . | . . . . . Impact . | . . . . . Slashing . | . . . . . Piercing . | . . . . . Sneak Attacks . | . . . . . Combat Hostiles . | . . . . . Follow-up Attacks . | . . . . . Damage Inflicted 1121 | . 191 361 143 426 Guns 521 | . 191 330 . . Cannons 582 | . . 31 143 408 Explosions . | . . . . . Melee . | . . . . . Ramming 18 | . . . . 18 Kinetic 1103 | . 191 361 143 408 Thermal . | . . . . . Explosive . | . . . . . Electromagnetic . | . . . . . Impact . | . . . . . Slashing . | . . . . . Piercing . | . . . . . Highest Corruption . | . . . . . Average Corruption . | . . . . . Corruption Purged . | . . . . . Corruption Blocked . | . . . . . Overload Shots . | . . . . . Overflow Damage . | . . . . . Projectiles . | . . . . . Explosions . | . . . . . Melee . | . . . . . Knockbacks 4 | . . . . 4 Impact . | . . . . . Kinetic 4 | . . . . 4 Secondary . | . . . . . Self-Inflicted Damage . | . . . . . Shots . | . . . . . Rammed . | . . . . . Targets Rammed 4 | . . . . 4 Kicked 4 | . . . . 4 Crushed . | . . . . . Highest Temperature 40 | . 18 40 . . Average Temperature 13 | . 8 16 . . Received Heat Transfer 441 | . 99 249 27 66 Siege Activations . | . . . . . Martial Activations . | . . . . . Shielding Activations . | . . . . . Robots Disrupted . | . . . . . Combat Hostiles . | . . . . . Robots Corrupted . | . . . . . Combat Hostiles . | . . . . . Parts Fried . | . . . . . Impact Corruptions . | . . . . . Robots Melted . | . . . . . Combat Hostiles . | . . . . . Parts Melted . | . . . . . Heat Transferred . | . . . . . Parts Sabotaged . | . . . . . Parts Stolen . | . . . . . Parts Stripped . | . . . . . Power Chain Reactions . | . . . . . Alert | -11 -10 -10 -9 -9 ------- Run | Yrd Mat Min Mat Min Maximum Alert Level . | . . . . . Low Security (%) 100 | 100 100 100 100 100 Level 1 . | . . . . . Level 2 . | . . . . . Level 3 . | . . . . . Level 4 . | . . . . . Level 5 . | . . . . . High Security . | . . . . . Max Security . | . . . . . Peak Influence 138 | . 35 72 87 138 Initial 25 | . . 9 25 22 Average 19 | . 6 5 22 31 Influence Increases 727 | . 65 188 122 352 Destroy 0b10 Robot/C 520 | . 40 140 60 280 Destroy 0b10 Robot/NC 10 | . . 10 . . Destroy Leader 110 | . 10 30 30 40 Allied During Kill 35 | . . 8 12 15 Successful Hack 5 | . . . 5 . Disable Machine 15 | . . . 15 . Destroy Structure 2 | . . . . 2 Lose Combat Pursuer 30 | . 15 . . 15 Influence Decreases 727 | . 40 147 131 409 Entered New Map 92 | . . 16 41 35 Time Decay 573 | . 40 109 90 334 Lost Part 42 | . . 22 . 20 Lost Ally 20 | . . . . 20 Squads Dispatched 1 | . . . 1 . Investigation 1 | . . . 1 . Extermination . | . . . . . Reinforcement . | . . . . . Assault . | . . . . . Garrison . | . . . . . Intercept . | . . . . . Searches Triggered . | . . . . . Construction Impeded . | . . . . . Haulers Reinforced . | . . . . . Active Scanning Responses . | . . . . . Cargo Convoy Interrupts . | . . . . . Stealth | -11 -10 -10 -9 -9 --------- Run | Yrd Mat Min Mat Min Distress Signals 1 | . 1 . . . Communications Jammed . | . . . . . Distress Signals . | . . . . . Times Spotted 30 | . 5 7 4 14 Peak Tracking Total 4 | . 4 2 1 4 Tactical Retreats 2 | . 1 . . 1 Traps | -11 -10 -10 -9 -9 ------- Run | Yrd Mat Min Mat Min Traps Triggered 1 | . . . 1 . Indirectly . | . . . . . Trap Hack Attempts . | . . . . . Triggered . | . . . . . Disarmed . | . . . . . Reprogrammed . | . . . . . Reused . | . . . . . Traps Extracted . | . . . . . Installed . | . . . . . Triggered . | . . . . . Machines | -11 -10 -10 -9 -9 ---------- Run | Yrd Mat Min Mat Min Machines Disabled 1 | . . . 1 . Max in Single Turn . | . . . . . Machines Repaired . | . . . . . Machines Dismantled . | . . . . . Machines Sabotaged . | . . . . . Overloaded Fab Kills . | . . . . . Hacking | -11 -10 -10 -9 -9 --------- Run | Yrd Mat Min Mat Min Machines Accessed 2 | . 1 . 1 . Terminals 2 | . 1 . 1 . Fabricators . | . . . . . Repair Stations . | . . . . . Recycling Units . | . . . . . Scanalyzers . | . . . . . Garrison Access . | . . . . . Total Hacks 4 | . 2 . 2 . Successful 2 | . 1 . 1 . Failed 2 | . 1 . 1 . Catastrophic . | . . . . . Database Lockouts . | . . . . . Manual . | . . . . . Terminals 4 | . 2 . 2 . Fabricators . | . . . . . Repair Stations . | . . . . . Recycling Units . | . . . . . Scanalyzers . | . . . . . Garrison Access . | . . . . . Terminal Hacks 2 | . 1 . 1 . Robot Analysis 1 | . . . 1 . Prototype ID Bank 1 | . 1 . . . Fabricator Hacks . | . . . . . Repair Station Hacks . | . . . . . Recycling Unit Hacks . | . . . . . Scanalyzer . | . . . . . Garrison Access Hacks . | . . . . . Unauthorized Hacks . | . . . . . Terminals . | . . . . . Fabricators . | . . . . . Repair Stations . | . . . . . Recycling Units . | . . . . . Scanalyzers . | . . . . . Garrison Access . | . . . . . Data Cores Recovered . | . . . . . Used . | . . . . . Hacking Detections 2 | . 1 . 1 . Full Trace Events . | . . . . . Feedback Events . | . . . . . Feedback Blocked . | . . . . . Robot Schematics Acquired . | . . . . . Robots Built . | . . . . . Authchips . | . . . . . Time . | . . . . . Total Robot Build Rating . | . . . . . Part Schematics Acquired . | . . . . . Parts Built . | . . . . . Authchips . | . . . . . Time . | . . . . . Total Part Build Rating . | . . . . . Part Studies Acquired . | . . . . . Parts Repaired . | . . . . . Time . | . . . . . Parts Recycled . | . . . . . Recycled Matter . | . . . . . Retrieved Matter . | . . . . . Retrieved Components . | . . . . . Parts Scanalyzed . | . . . . . Part Schematics Acquired . | . . . . . Parts Damaged . | . . . . . Bothacking | -11 -10 -10 -9 -9 ------------ Run | Yrd Mat Min Mat Min Used RIF Installer . | . . . . . Robots Hacked . | . . . . . Non-combat . | . . . . . Combat . | . . . . . Robot Hacks Applied . | . . . . . Relay Couplers Released . | . . . . . Fabnet Peak Effective % . | . . . . . Robots Rewired . | . . . . . Allies Hacked . | . . . . . Hacks Repelled . | . . . . . Allies | -11 -10 -10 -9 -9 -------- Run | Yrd Mat Min Mat Min Total Allies 5 | . . 2 . 3 Largest Group 3 | . . 2 2 3 Highest-Rated Group 40 | . . 38 38 40 Highest-Rated Ally 31 | . . 31 31 31 Total Orders . | . . . . . Ally Attacks 23 | . . 9 3 11 Total Damage 221 | . . 105 . 116 Kills 6 | . . 2 . 4 Allies Corrupted . | . . . . . Allies Melted . | . . . . . Intel | -11 -10 -10 -9 -9 ------- Run | Yrd Mat Min Mat Min Active Infowar (turns) . | . . . . . Robot Analysis Total 1 | . . . 1 . Derelict Logs Recovered 2 | . . 1 . 1 Drone Launches . | . . . . . Drone Recoveries . | . . . . . Exploration | -11 -10 -10 -9 -9 ------------- Run | Yrd Mat Min Mat Min Turns Passed 3202 | 48 172 1157 311 1514 Spaces Moved 2091 | 51 161 847 237 795 Core 8 | 5 . 3 . . Treads . | . . . . . Legs 1756 | . . 724 237 795 Wheels 327 | 46 161 120 . . Hover . | . . . . . Flight . | . . . . . Fastest Speed 50 | 50 80 80 120 120 Average Speed 123 | 77 80 115 120 145 Slowest Speed 250 | 80 80 250 120 190 Overloaded Moves . | . . . . . Propulsion Burnouts . | . . . . . Robots Hopped . | . . . . . Potential Cave-ins . | . . . . . Cave-ins Triggered . | . . . . . Exploration Rate (%) 50 | 3 28 99 23 98 Regions Visited 4 Branch Regions 2 Pre-discovered Areas 2 | . . 1 . 1 Known Exits Taken 1 | . . . 1 . Unknown Exits Taken 3 | 1 1 1 . . Scrap Searched 3 | . . 1 . 2 Spaces Dug 2 | . . . . 2 Terrain Destroyed 2 | . . . . 2 Melee . | . . . . . Projectile 2 | . . . . 2 AOE . | . . . . . Terrain Rammed . | . . . . . Walls Destroyed . | . . . . . Machines Disabled . | . . . . . Actions | -11 -10 -10 -9 -9 --------- Run | Yrd Mat Min Mat Min Total 2572 | 56 178 978 251 1109 Wait 362 | . . 97 . 265 Move 2087 | 50 160 846 236 795 Hop . | . . . . . Pick Up 6 | . 3 1 1 1 Fast Attach 16 | 6 . 3 4 3 Attach 2 | . . 1 . 1 Detach 1 | . . 1 . . Swap 5 | . 1 1 . 3 Drop 1 | . . . . 1 Fire 88 | . 14 28 10 36 Melee . | . . . . . Ram . | . . . . . Kick 4 | . . . . 4 Crush . | . . . . . Escape Stasis . | . . . . . Rewire . | . . . . . Trap . | . . . . . Miscellaneous . | . . . . . Route ------- -11/Scrapyard -10/Materials -10/Mines (discovered 3 exits: *Mat x2 / [*Sub]) -9/Materials -9/Mines (discovered 2 exits: [*Mat x2]) History --------- Turn | Location | Event 13 | -11/Scrapyard | Discovered new exit (range 15) 49 | -11/Scrapyard | Entered Materials 147 | -10/Materials | Discovered new exit (range 16) 221 | -10/Materials | Entered Mines 310 | -10/Mines | Build established: Mutant 430 | -10/Mines | Learned location of Storage (-8) 612 | -10/Mines | Core integrity fell below 50% 829 | -10/Mines | Discovered new exit (range 10) 934 | -10/Mines | Discovered new exit (range 6) 1149 | -10/Mines | Discovered new exit (range 4) 1323 | -10/Mines | Core integrity fell below 20% 1378 | -10/Mines | Entered Materials 1378 | -9/Materials | Accompanied by 2 allies 1378 | -9/Materials | Evolved 2 slots: Utility x2 1383 | -9/Materials | Led the pair of lost Derelicts to an unsafe place 1665 | -9/Materials | Discovered new exit (range 15) 1687 | -9/Materials | Identified exit to Mines 1689 | -9/Materials | Entered Mines 1689 | -9/Mines | Accompanied by 1 ally 1700 | -9/Mines | Met a Derelict bent on vengeance 1931 | -9/Mines | Discovered new exit (range 12) 2016 | -9/Mines | Build established: Scavenger-Mutant 2315 | -9/Mines | Assisted by bots powering up and referring to "LRC-V3" 2431 | -9/Mines | Received a Rocket Launcher from a helpful Derelict 2981 | -9/Mines | Discovered new exit (range 5) 2985 | -9/Mines | Build established: Mutant 3203 | -9/Mines | Self-destructed Last Messages --------------- laser wimps, I say!" 02431_ A7-74T(g): "Would you like a rocket launcher? I know I would if I were you, so I'm going to lend you mine." 02431_ A7-74T(g) slips back into the shadows. 02440_ S-10 Pest destroyed. 02452_ Acquired 11 matter. 02456_ Acquired 1 matter. 02465_ Dropped Wheel. 02466_ Acquired Rocket Launcher. 02505_ Searching scrap... 02505_ Found 56 Matter. 02505_ Found Autogun. 02505_ Found 43 Matter. 02678_ U-05 Engineer builds a Wall. 02864_ Acquired 24 matter. 02981_ EXIT=FOUND 03058_ Kicked R-06 Scavenger out of the way. 03116_ Kicked T-07 Excavator. 03142_ Kicked K-01 Serf. 03169_ Kicked K-01 Serf out of the way. Map ----- +----------------------------------------------------+ | #????# < #???????????????????? | | #????## #######???????????????????? | | #?????#####?????????????????????????? | | #???????????????????????????????????? | | #???????????????####????????????????? | | #??????????????## ##???????????????? | | #??????????????# #???????????????? | | ##????????????## #???????????????? | | ##???????????# #????????????????? | | #???????????# ##????????????????? | | #??????????## #??????????#####??? | | ##?????????## #?????????## #??? | | ##?????????##% ##?????????# #??? | | ##????????## ##??????????# #??? | | ##??????## ##??????????# #??? | | ##????## ##?????????# ##?? | | #????# ##????????# #?? | | #???## #????????## #?? | | ##??## ##### ##?????##### #?? | | ##??## ##????##??????# #?? | | #??## #?????????????# #### ##?? | | #??# ##?????????????# #??####??? | | #?## #??????????????# #????????? | | ### ##??############g#????????? | | #### #### t gg #????????? | | ??# @ #????????? | | ### ### % ## ########????????? | | ##?# #######???????????????? | | %##??# #?????????????????????? | | ## #???## #?????????????????????? | | ## #????# ##????####?????????????? | | #????## ##????## ###???????????? | | #?????## #?????# ##########??? | | # #??????# #????## % #??? | | # ##??????# ###### %[ #??? | | ####???????# ##### #??? | | ???????????# ####### ##???# #??? | | ???????????# #?????## ##????# #??? | | ???????????# #??????######?###?# #??? | | ###????????# ####?????????## ## #??? | | ########## #????????## ##?? | | ### #???????## #?? | | #?# #???????# #?? | | ###### #?# #??????# ## #?? | | ##????# #?# #??????# #?## #?? | | ###?????# #?# #?????# #???# #?? | | #???????# #?# #?????## #???## #?? | | #???????# #?# #??????###???## #?? | | ##???????# ### #???????????## ##?? | | ????????## # #???????????# ##??? | +----------------------------------------------------+ Best States ------------- Heat Dissipation 42 Energy Generation 14 Energy Capacity 160 Matter Stores 300 Matter Capacity 300 Sight Range 16 Terrain Scan Density 10 Evasion (%) 55 Targeting Accuracy 6 Item Schematics ----------------- None Robot Schematics ------------------ None Fabricated ------------ Nothing Repaired ---------- Nothing Studied --------- None Alien Tech Used ----------------- None Achievements -------------- None Challenges ------------ None Game ------ Seed ThermicPartitionLance Manual? 0 Play Time 00:15:59 Cumulative 46.8 hours Start 2026.02.21 @ 00:47:18 End 2026.02.21 @ 00:59:00 Sessions 1 Manual Loads 0 Difficulty Rogue Special Mode None Game No. 60 Rogue 36 Adventurer 24 Explorer 0 Win Type - Total 0 Types 0/0/0/0/0/0/0/0/0/0 Lore% 32 Gallery% 28 Achievement% 22 Wizard Run 0 Options --------- Layout 0 ASCII 0 Keyboard 1 Movement Arrows Keybinds 0 Fullscreen 1 Font 18/SmallcapsGlow Map View 76x50 Zoom Use 3% Tactical HUD 1 Map Filters NONE Filters NONE Steam 1 RUN: 989375eb-4b90-40e0-baf1-83a47335cb00